Cogmind - Beta 9.1 @@@ ROGUE MODE // 2019.10.31 @ 22:43:15 // Halloween2019/Abominations Player: Alyr Result: Destroyed by Lesser Abomination with Etherial Claws Performance ------------- Evolutions (0) 0 Regions Visited (1) 200 Robots Destroyed (9) 45 Value Destroyed (312) 312 Prototype IDs (0) 0 Alien Tech Used (0) 0 Bonus (0) 0 TOTAL SCORE: 557 Bonus ------- None Cogmind --------- Core Integrity 0/250 Matter 300/300 Energy 102/125 System Corruption 0% Temperature Cool (0) Location -10/Materials Parts ------- Power (1) Light Ion Engine Propulsion (2) Aluminum Leg Utility (2) Improved Heat Sink Small Storage Unit Weapon (2) Light Assault Rifle Inventory (6) Light Treads Light Treads EM Pulse Gun Small Laser Peak State ------------ Power Ion Engine Propulsion Aluminum Leg Aluminum Leg Utility Improved Heat Sink Small Storage Unit Weapon Small Laser Light Assault Rifle Inventory Light Ion Engine Light Treads Light Treads EM Pulse Gun Medium Laser Small Laser [Rating: 9] Favorites ----------- Power Light Ion Engine Engine Light Ion Engine Propulsion Aluminum Leg Leg Aluminum Leg Utility Small Storage Unit Device Structural Scanner Storage Small Storage Unit Weapon Light Assault Rifle Energy Gun Medium Laser Ballistic Gun Light Assault Rifle Launcher Grenade Launcher Build | -11 -10 ------- Run | Scr Mat Slots Evolved . | . . Power . | . . Propulsion . | . . Utility . | . . Weapon . | . . Parts Attached 14 | . 14 Power 2 | . 2 Engine 2 | . 2 Core . | . . Reactor . | . . Propulsion 2 | . 2 Treads . | . . Leg 2 | . 2 Wheel . | . . Hover . | . . Flight . | . . Utility 3 | . 3 Device 3 | . 3 Storage . | . . Processor . | . . Hackware . | . . Protection . | . . Artifact . | . . Weapon 7 | . 7 Energy Gun 5 | . 5 Energy Cannon . | . . Ballistic Gun 1 | . 1 Ballistic Cannon . | . . Launcher 1 | . 1 Special Weapon . | . . Impact Weapon . | . . Slashing Weapon . | . . Piercing Weapon . | . . Special Melee Weapon . | . . Unidentified Prototypes . | . . Parts Lost 6 | . 6 Power 1 | . 1 Propulsion 1 | . 1 Utility . | . . Weapon 4 | . 4 Highest Loss Streak 3 | . 3 Average Slot Usage (%) 98 | . 98 Engine 14 | . 14 Leg 27 | . 27 Device 13 | . 13 Storage 14 | . 14 Energy Gun 9 | . 9 Ballistic Gun 17 | . 17 Naked Turns . | . . Heaviest Build 13 | 9 13 Greatest Support 20 | 20 20 Greatest Overweight (x) . | . . Average Overweight (x) . | . . Largest Inventory Capacity 6 | . 6 Average Capacity 6 | . 6 Most Carried 6 | . 6 Average Carried 5 | . 5 Final Capacity 6 | 6 6 Final Carried 6 | 6 4 Class Distribution -------------------- 74% | Mutant 25% | Scavenger-Mutant Dominant Class ---------------- Mutant | -10/Materials Resources | -11 -10 ----------- Run | Scr Mat Matter Collected 387 | 200 187 Remotely . | . . Salvage Created 267 | . 267 Parts 17 | . 17 Haulers Intercepted . | . . Recyclers Shooed . | . . Parts Field Recycled . | . . Retrieved Matter . | . . Parts Self-Destructed . | . . Prevented . | . . Kills | -11 -10 ------- Run | Scr Mat Combat Hostiles Destroyed 9 | . 9 Guns 6 | . 6 AOE 3 | . 3 Classes Destroyed 3 | . 3 Swarmer 3 | . 3 Grunt 3 | . 3 Abomination 3 | . 3 Best Kill Streak 5 | . 5 Combat Bots Only 5 | . 5 Max Kills in Single Turn 1 | . 1 Gunslinging . | . . Exploded 1 | . 1 Melee . | . . Uniques/NPCs Destroyed . | . . Combat | -11 -10 -------- Run | Scr Mat Damage Taken 1063 | . 1063 Core 268 | . 268 Absorbed by Shields . | . . Core Remaining (%) 100 | 100 . Volleys Fired 47 | . 47 Largest 2 | . 2 Hottest 70 | . 70 Shots Fired 85 | . 85 Gun 81 | . 81 Cannon . | . . Launcher 4 | . 4 Special . | . . Kinetic 44 | . 44 Thermal 31 | . 31 Explosive 4 | . 4 Electromagnetic 6 | . 6 Robot Hit Streak 7 | . 7 Robot Miss Streak 4 | . 4 Penetration Max . | . . Secondary Targets 1 | . 1 Max Gunslinging Chain 1 | . 1 Shots Hit Robots 55 | . 55 Core Hits 21 | . 21 Critical Hits . | . . Critical Kills . | . . Critical Parts Destroyed . | . . Melee Attacks . | . . Impact . | . . Slashing . | . . Piercing . | . . Sneak Attacks . | . . Combat Hostiles . | . . Follow-up Attacks . | . . Damage Inflicted 647 | . 647 Guns 485 | . 485 Cannons . | . . Explosions 157 | . 157 Melee . | . . Ramming 5 | . 5 Kinetic 199 | . 199 Thermal 255 | . 255 Explosive 157 | . 157 Electromagnetic 31 | . 31 Impact . | . . Slashing . | . . Piercing . | . . Highest Corruption . | . . Average Corruption . | . . Corruption Purged . | . . Overload Shots . | . . Overflow Damage 24 | . 24 Projectiles . | . . Explosions 24 | . 24 Melee . | . . Knockbacks . | . . Impact . | . . Kinetic . | . . Secondary . | . . Self-Inflicted Damage 81 | . 81 Shots 4 | . 4 Rammed 1 | . 1 Targets Rammed 2 | . 2 Kicked 1 | . 1 Crushed . | . . Highest Temperature 499 | . 499 Average Temperature 87 | . 87 Received Heat Transfer 114 | . 114 Effects 1 | . 1 Shutdowns 1 | . 1 Siege Activations . | . . Robots Corrupted . | . . Combat Hostiles . | . . Parts Fried . | . . Impact Corruptions . | . . Robots Melted . | . . Combat Hostiles . | . . Parts Melted 2 | . 2 Heat Transferred 344 | . 344 Parts Sabotaged . | . . Parts Stolen . | . . Parts Stripped . | . . Power Chain Reactions . | . . Missiles Intercepted . | . . Alert | -11 -10 ------- Run | Scr Mat Peak Influence 179 | . 179 Average Influence 91 | . 91 Maximum Alert Level . | . . Low Security (%) 100 | . . Level 1 . | . . Level 2 . | . . Level 3 . | . . Level 4 . | . . Level 5 . | . . High Security . | . . Max Security . | . . Squads Dispatched 5 | . 5 Investigation 1 | . 1 Extermination . | . . Reinforcement 2 | . 2 Assault 2 | . 2 Garrison . | . . Intercept . | . . Construction Impeded . | . . Haulers Reinforced . | . . Stealth | -11 -10 --------- Run | Scr Mat Distress Signals 2 | . 2 Communications Jammed . | . . Distress Signals . | . . Times Spotted 21 | . 21 Peak Tracking Total 7 | . 7 Tactical Retreats 2 | . 2 Traps | -11 -10 ------- Run | Scr Mat Traps Triggered . | . . Indirectly . | . . Trap Hack Attempts . | . . Triggered . | . . Disarmed . | . . Reprogrammed . | . . Reused . | . . Traps Extracted . | . . Installed . | . . Triggered . | . . Machines | -11 -10 ---------- Run | Scr Mat Machines Disabled . | . . Max in Single Turn . | . . Machines Sabotaged . | . . Garrisons Compromised . | . . Overloaded Fab Kills . | . . Fab Network Shutdowns . | . . Hacking | -11 -10 --------- Run | Scr Mat Machines Accessed 2 | . 2 Terminals 2 | . 2 Fabricators . | . . Repair Stations . | . . Recycling Units . | . . Scanalyzers . | . . Garrison Access . | . . Total Hacks 4 | . 4 Successful 1 | . 1 Failed 3 | . 3 Catastrophic . | . . Database Lockouts . | . . Manual 1 | . 1 Terminals 4 | . 4 Fabricators . | . . Repair Stations . | . . Recycling Units . | . . Scanalyzers . | . . Garrison Access . | . . Terminal Hacks 1 | . 1 Level Access Points 1 | . 1 Fabricator Hacks . | . . Repair Station Hacks . | . . Recycling Unit Hacks . | . . Scanalyzer . | . . Garrison Access Hacks . | . . Unauthorized Hacks . | . . Terminals . | . . Fabricators . | . . Repair Stations . | . . Recycling Units . | . . Scanalyzers . | . . Garrison Access . | . . Data Cores Recovered . | . . Used . | . . Hacking Detections 1 | . 1 Full Trace Events 1 | . 1 Feedback Events . | . . Feedback Blocked . | . . Robot Schematics Acquired . | . . Robots Built . | . . Matter . | . . Time . | . . Total Robot Build Rating . | . . Part Schematics Acquired . | . . Parts Built . | . . Matter . | . . Time . | . . Total Part Build Rating . | . . Parts Repaired . | . . Time . | . . Parts Recycled . | . . Recycled Matter . | . . Retrieved Matter . | . . Retrieved Components . | . . Parts Scanalyzed . | . . Part Schematics Acquired . | . . Parts Damaged . | . . Bothacking | -11 -10 ------------ Run | Scr Mat Used RIF Installer . | . . Robots Hacked . | . . Non-combat . | . . Combat . | . . Robot Hacks Applied . | . . Relay Couplers Released . | . . Robots Rewired . | . . Allies Hacked . | . . Hacks Repelled . | . . Allies | -11 -10 -------- Run | Scr Mat Total Allies . | . . Largest Group . | . . Highest-Rated Group . | . . Highest-Rated Ally . | . . Total Orders . | . . Ally Attacks . | . . Total Damage . | . . Kills . | . . Allies Corrupted . | . . Allies Melted . | . . Intel | -11 -10 ------- Run | Scr Mat Robot Analysis Total . | . . Derelict Logs Recovered . | . . Drone Launches . | . . Drone Recoveries . | . . Exploration | -11 -10 ------------- Run | Scr Mat Turns Passed 419 | . 419 Spaces Moved 194 | 1 193 Core . | . . Treads . | . . Legs 194 | 1 193 Wheels . | . . Hover . | . . Flight . | . . Fastest Speed 120 | 120 120 Average Speed 120 | 120 120 Slowest Speed 120 | 120 120 Overloaded Moves . | . . Propulsion Burnouts . | . . Robots Hopped . | . . Cave-ins Triggered . | . . Exploration Rate (%) 20 | 2 39 Regions Visited 1 Branch Regions . Pre-discovered Areas . | . . Known Exits Taken . | . . Unknown Exits Taken 1 | 1 . Scrap Searched . | . . Spaces Dug . | . . Terrain Destroyed 41 | . 41 Melee . | . . Projectile . | . . AOE 41 | . 41 Actions | -11 -10 --------- Run | Scr Mat Total 303 | . 303 Wait 36 | . 36 Move 193 | . 193 Hop . | . . Pick Up 4 | . 4 Fast Attach 3 | . 3 Attach 5 | . 5 Detach 1 | . 1 Swap 6 | . 6 Drop 6 | . 6 Fire 47 | . 47 Melee . | . . Ram . | . . Kick 2 | . 2 Crush . | . . Escape Stasis . | . . Rewire . | . . Trap . | . . Miscellaneous . | . . Route ------- -11/Scrapyard -10/Materials (discovered 3 exits: Mat x3) History --------- Turn | Location | Event 1 | -11/Scrapyard | Discovered new exit (range 0) 1 | -11/Scrapyard | Entered Materials 380 | -10/Materials | Discovered new exit (range 6) 398 | -10/Materials | Identified exit to Materials 404 | -10/Materials | Core integrity fell below 50% 417 | -10/Materials | Core integrity fell below 20% 420 | -10/Materials | Destroyed by Lesser Abomination with Etherial Claws Last Messages --------------- EXIT=FOUND (Blocked) Hover Unit blinks away. Connecting with Terminal... >>Access(Main) Found 3 level access points to Materials: (67,66) (20,68) (35,9) Map updated. Lesser Abomination spits out Hover Unit. Lesser Abomination absorbs Hover Unit. Lesser Abomination follow-up attacks with Hammer. Ion Engine destroyed. Sml. Laser destroyed. Aluminum Leg destroyed. Lesser Abomination follow-up attacks with Hammer. Slammed into Lesser Abomination. Kicked Lesser Abomination out of the way. Lesser Abomination spits out Hover Unit. Lesser Abomination absorbs Hover Unit. Map ----- +----------------------------------------------------+ | | | | | | | | | | | | | | | | | | | | | | | ????????????????????????????????????????????? | | ????????????????????????????????????????????? | | ????????????????????????????????????????????? | | ????????????????????????????????????????????? | | ????????????????????#########???????????????? | | ????????????????????# #??????????????? | | ????????????????????# """" #??????????????? | | ???????????????????## """" #??????????????? | | ???????????????????#" """" #??????????????? | | ?????